[Event "*** Titled Tuesday Blitz"]
[Site "Chess.com"]
[Date "2018.01.02"]
[Round "1"]
[White "VerdeNotte"]
[Black "capatl"]
[Result "1-0"]
[WhiteElo "2669"]
[BlackElo "2373"]
[TimeControl "180+2"]
[EndTime "13:07:44 PST"]
[Termination "VerdeNotte won by checkmate"]

1. a3 {[%clk 0:02:59.5]} 1... d5 {[%clk 0:02:57.9]} 2. Nf3 {[%clk 0:02:58.6]}
2... g6 {[%clk 0:02:56.3]} 3. g3 {[%clk 0:02:58.3]} 3... Bg7 {[%clk 0:02:57.5]}
4. Bg2 {[%clk 0:02:59.6]} 4... Nf6 {[%clk 0:02:58]} 5. O-O {[%clk 0:03:00.4]}
5... O-O {[%clk 0:02:58.8]} 6. d3 {[%clk 0:03:01.8]} 6... b6 {[%clk 0:02:54.1]}
7. c4 {[%clk 0:03:02.2]} 7... Bb7 {[%clk 0:02:54.5]} 8. cxd5 {[%clk 0:02:58.8]}
8... Nxd5 {[%clk 0:02:55]} 9. Qc2 {[%clk 0:02:54.6]} 9... c5 {[%clk 0:02:55.7]}
10. Nc3 {[%clk 0:02:55.5]} 10... Nc6 {[%clk 0:02:51.5]} 11. Nxd5 {[%clk
0:02:49.7]} 11... Qxd5 {[%clk 0:02:52]} 12. Be3 {[%clk 0:02:51.2]} 12... Rac8
{[%clk 0:02:46.7]} 13. Rab1 {[%clk 0:02:42.9]} 13... Nd4 {[%clk 0:02:36.1]} 14.
Qd2 {[%clk 0:02:09.4]} 14... Rfd8 {[%clk 0:02:19.4]} 15. b4 {[%clk 0:02:06]}
15... c4 {[%clk 0:02:14.2]} 16. Bxd4 {[%clk 0:01:33.7]} 16... Bxd4 {[%clk
0:02:12.6]} 17. dxc4 {[%clk 0:01:31.8]} 17... Qxc4 {[%clk 0:01:43.4]} 18. Nxd4
{[%clk 0:01:26.6]} 18... Rxd4 {[%clk 0:01:40.7]} 19. Qg5 {[%clk 0:01:03.2]}
19... Bxg2 {[%clk 0:01:39.3]} 20. Kxg2 {[%clk 0:01:05.1]} 20... f6 {[%clk
0:01:30.8]} 21. Qh6 {[%clk 0:00:46.7]} 21... Rcd8 {[%clk 0:01:15.6]} 22. Rfe1
{[%clk 0:00:38.8]} 22... Rd2 {[%clk 0:01:14.5]} 23. Qe3 {[%clk 0:00:38.8]} 23...
e5 {[%clk 0:01:13.6]} 24. Rbc1 {[%clk 0:00:38.2]} 24... Qd5+ {[%clk 0:01:13.9]}
25. Kg1 {[%clk 0:00:38.5]} 25... Rd7 {[%clk 0:01:12.3]} 26. Rc8+ {[%clk
0:00:37.1]} 26... Kg7 {[%clk 0:01:12.4]} 27. h4 {[%clk 0:00:35.8]} 27... Qb7
{[%clk 0:01:07.6]} 28. Rcc1 {[%clk 0:00:30.6]} 28... R2d4 {[%clk 0:01:08.1]} 29.
f3 {[%clk 0:00:26.4]} 29... Qd5 {[%clk 0:01:08.2]} 30. Kf2 {[%clk 0:00:26.2]}
30... Rd2 {[%clk 0:01:09.3]} 31. Rc8 {[%clk 0:00:25.6]} 31... Qa2 {[%clk
0:01:06.4]} 32. h5 {[%clk 0:00:24]} 32... g5 {[%clk 0:01:06.2]} 33. Qe4 {[%clk
0:00:23.4]} 33... Qd5 {[%clk 0:01:06.7]} 34. h6+ {[%clk 0:00:23.2]} 34... Kf7
{[%clk 0:01:02]} 35. Qxh7+ {[%clk 0:00:23.9]} 35... Ke6 {[%clk 0:01:03.4]} 36.
Qg8+ {[%clk 0:00:25]} 36... Kd6 {[%clk 0:01:04.1]} 37. h7 {[%clk 0:00:21]} 37...
Qd4+ {[%clk 0:01:03.9]} 38. Kg2 {[%clk 0:00:21.9]} 38... Qe3 {[%clk 0:01:01.4]}
39. Qf8+ {[%clk 0:00:22.8]} 39... Ke6 {[%clk 0:01:01.5]} 40. Rc6+ {[%clk
0:00:23.4]} 40... Kf5 {[%clk 0:01:02.4]} 41. Qxf6# {[%clk 0:00:23.3]} 1-0

[Event "*** Titled Tuesday Blitz"]
[Site "Chess.com"]
[Date "2018.01.02"]
[Round "1"]
[White "Divertissement"]
[Black "Konavets"]
[Result "1/2-1/2"]
[WhiteElo "2416"]
[BlackElo "2743"]
[TimeControl "180+2"]
[EndTime "13:07:45 PST"]
[Termination "Game drawn by repetition"]

1. Nf3 {[%clk 0:02:59.9]} 1... Nf6 {[%clk 0:02:55.2]} 2. c4 {[%clk 0:02:59.5]}
2... b6 {[%clk 0:02:57.1]} 3. g3 {[%clk 0:02:57.9]} 3... Bb7 {[%clk 0:02:59]} 4.
Bg2 {[%clk 0:02:58.1]} 4... e5 {[%clk 0:03:00.9]} 5. O-O {[%clk 0:02:56.5]} 5...
e4 {[%clk 0:03:02.4]} 6. Nd4 {[%clk 0:02:49.7]} 6... Nc6 {[%clk 0:03:03.6]} 7.
Nb3 {[%clk 0:02:44]} 7... a5 {[%clk 0:02:59.7]} 8. d3 {[%clk 0:02:39.8]} 8... a4
{[%clk 0:03:00.5]} 9. N3d2 {[%clk 0:02:38.9]} 9... exd3 {[%clk 0:03:01.9]} 10.
exd3 {[%clk 0:02:38.3]} 10... Be7 {[%clk 0:03:03.5]} 11. Nc3 {[%clk 0:02:32.5]}
11... a3 {[%clk 0:03:01.4]} 12. b3 {[%clk 0:02:17.8]} 12... O-O {[%clk
0:02:58.7]} 13. Nb5 {[%clk 0:02:06.5]} 13... d5 {[%clk 0:02:58.1]} 14. Nf3
{[%clk 0:01:51.6]} 14... dxc4 {[%clk 0:02:55.5]} 15. dxc4 {[%clk 0:01:51.6]}
15... Qc8 {[%clk 0:02:51.1]} 16. Bf4 {[%clk 0:01:48.7]} 16... Rd8 {[%clk
0:02:51.7]} 17. Qe2 {[%clk 0:01:40.4]} 17... Bd6 {[%clk 0:02:26.1]} 18. Nxd6
{[%clk 0:01:20.5]} 18... cxd6 {[%clk 0:02:28]} 19. Bg5 {[%clk 0:01:19.8]} 19...
Re8 {[%clk 0:02:28.3]} 20. Qd1 {[%clk 0:01:13.6]} 20... Ne4 {[%clk 0:02:29.5]}
21. Be3 {[%clk 0:01:12.3]} 21... Ra6 {[%clk 0:01:52.2]} 22. Nd4 {[%clk
0:01:08.8]} 22... Nc3 {[%clk 0:01:40.7]} 23. Qd2 {[%clk 0:01:07.2]} 23... Nxd4
{[%clk 0:01:41.5]} 24. Bxd4 {[%clk 0:00:50.2]} 24... Ne2+ {[%clk 0:01:17.3]} 25.
Kh1 {[%clk 0:00:50.6]} 25... Ra8 {[%clk 0:01:14.8]} 26. Rae1 {[%clk 0:00:41.4]}
26... Bxg2+ {[%clk 0:00:48.3]} 27. Kxg2 {[%clk 0:00:43.3]} 27... Qg4 {[%clk
0:00:49.6]} 28. Be3 {[%clk 0:00:29]} 28... Qe4+ {[%clk 0:00:50.1]} 29. Kh3
{[%clk 0:00:30.3]} 29... Qf5+ {[%clk 0:00:50.6]} 30. Kg2 {[%clk 0:00:30.9]}
30... Qe4+ {[%clk 0:00:52]} 31. Kh3 {[%clk 0:00:32.1]} 31... Qf5+ {[%clk
0:00:13.4]} 32. Kg2 {[%clk 0:00:32.9]} 32... Qe4+ {[%clk 0:00:14.9]} 1/2-1/2

[Event "*** Titled Tuesday Blitz"]
[Site "Chess.com"]
[Date "2018.01.02"]
[Round "1"]
[White "Superfelix"]
[Black "RobertoJBM"]
[Result "0-1"]
[WhiteElo "2269"]
[BlackElo "2556"]
[TimeControl "180+2"]
[EndTime "13:07:53 PST"]
[Termination "RobertoJBM won by resignation"]

1. e4 {[%clk 0:03:01.4]} 1... c6 {[%clk 0:02:59.8]} 2. Nc3 {[%clk 0:03:00.5]}
2... d5 {[%clk 0:03:01.7]} 3. Qe2 {[%clk 0:03:01.6]} 3... dxe4 {[%clk
0:03:03.4]} 4. Nxe4 {[%clk 0:03:01.7]} 4... Bf5 {[%clk 0:03:04.2]} 5. d3 {[%clk
0:03:01.8]} 5... e6 {[%clk 0:03:05.2]} 6. g3 {[%clk 0:03:02.7]} 6... Nd7 {[%clk
0:03:05.8]} 7. Bg2 {[%clk 0:03:03.8]} 7... Ngf6 {[%clk 0:03:06.9]} 8. Nf3 {[%clk
0:03:04.5]} 8... Be7 {[%clk 0:03:07.9]} 9. O-O {[%clk 0:03:04.6]} 9... O-O
{[%clk 0:03:08.8]} 10. b3 {[%clk 0:03:03.9]} 10... Rc8 {[%clk 0:03:07.8]} 11.
Bb2 {[%clk 0:03:04.2]} 11... h6 {[%clk 0:03:08.7]} 12. a4 {[%clk 0:02:58.8]}
12... a5 {[%clk 0:03:08.6]} 13. Rfe1 {[%clk 0:02:56.5]} 13... Re8 {[%clk
0:03:09.4]} 14. h3 {[%clk 0:02:56.1]} 14... Qc7 {[%clk 0:03:09.4]} 15. Nd4
{[%clk 0:02:54.5]} 15... Bh7 {[%clk 0:03:09.2]} 16. Nf3 {[%clk 0:02:46.8]} 16...
Nd5 {[%clk 0:03:04.9]} 17. Rad1 {[%clk 0:02:37.9]} 17... Bb4 {[%clk 0:03:04.5]}
18. c3 {[%clk 0:02:37.6]} 18... Be7 {[%clk 0:03:04.4]} 19. d4 {[%clk 0:02:37.3]}
19... f5 {[%clk 0:03:00.2]} 20. Ned2 {[%clk 0:02:36.7]} 20... Bf6 {[%clk
0:02:58]} 21. Nc4 {[%clk 0:02:37.6]} 21... Bg6 {[%clk 0:02:49.6]} 22. Nce5
{[%clk 0:02:38.3]} 22... Bh5 {[%clk 0:02:48.6]} 23. Nxd7 {[%clk 0:02:39.2]}
23... Qxd7 {[%clk 0:02:49.2]} 24. Qd3 {[%clk 0:02:40.5]} 24... Bxf3 {[%clk
0:02:44.2]} 25. Bxf3 {[%clk 0:02:40.5]} 25... Rcd8 {[%clk 0:02:45.7]} 26. Qc4
{[%clk 0:02:39.2]} 26... Kh8 {[%clk 0:02:43.2]} 27. Ba3 {[%clk 0:02:39.5]} 27...
Qc7 {[%clk 0:02:32.1]} 28. Re2 {[%clk 0:02:38.3]} 28... Nb6 {[%clk 0:02:17.9]}
29. Qd3 {[%clk 0:02:34.4]} 29... g6 {[%clk 0:02:16.1]} 30. Rde1 {[%clk 0:02:31]}
30... e5 {[%clk 0:02:16.4]} 31. Bg2 {[%clk 0:02:18.1]} 31... e4 {[%clk
0:02:16.3]} 32. Qd2 {[%clk 0:02:19.1]} 32... Bg5 {[%clk 0:02:15.9]} 33. Qc2
{[%clk 0:02:19.5]} 33... Qf7 {[%clk 0:02:10.2]} 34. h4 {[%clk 0:02:19.9]} 34...
Bf6 {[%clk 0:02:09.7]} 35. h5 {[%clk 0:02:18.7]} 35... gxh5 {[%clk 0:02:08.3]}
36. Bc5 {[%clk 0:02:13.7]} 36... Nd5 {[%clk 0:02:07.7]} 37. Ba3 {[%clk
0:02:10.8]} 37... h4 {[%clk 0:02:02.1]} 38. Bc1 {[%clk 0:02:11.5]} 38... hxg3
{[%clk 0:02:01.8]} 39. fxg3 {[%clk 0:02:13.4]} 39... Qg6 {[%clk 0:02:03.1]} 40.
Kf2 {[%clk 0:02:13.5]} 40... Bg5 {[%clk 0:02:02]} 41. Rh1 {[%clk 0:02:11.6]}
41... Kg7 {[%clk 0:02:02]} 42. c4 {[%clk 0:02:11.2]} 42... Nb4 {[%clk
0:02:02.4]} 43. Qb2 {[%clk 0:02:12.5]} 43... Bxc1 {[%clk 0:02:03.3]} 44. Qc3
{[%clk 0:02:09.9]} 44... Nd3+ {[%clk 0:02:02.9]} 45. Kf1 {[%clk 0:02:09.9]}
45... Bb2 {[%clk 0:02:01]} 46. Qc2 {[%clk 0:02:10.3]} 46... Bxd4 {[%clk
0:02:01.4]} 47. g4 {[%clk 0:02:11]} 47... Re7 {[%clk 0:01:28.7]} 48. Rd2 {[%clk
0:01:51.2]} 48... Qxg4 {[%clk 0:01:23.9]} 49. Rxd3 {[%clk 0:01:48.1]} 49... exd3
{[%clk 0:01:23.9]} 50. Qxd3 {[%clk 0:01:49.3]} 50... Bb6 {[%clk 0:01:21.9]} 51.
Qc3+ {[%clk 0:01:49.2]} 51... Qd4 {[%clk 0:01:22.8]} 52. Qg3+ {[%clk 0:01:49.1]}
52... Qg4 {[%clk 0:01:22.1]} 53. Qc3+ {[%clk 0:01:49.6]} 53... Bd4 {[%clk
0:01:21]} 54. Qd3 {[%clk 0:01:50.6]} 54... Re3 {[%clk 0:01:20]} 55. Qd2 {[%clk
0:01:48.7]} 55... Rde8 {[%clk 0:01:19]} 56. Be4 {[%clk 0:01:31.9]} 56... Re1+
{[%clk 0:01:17.3]} 57. Qxe1 {[%clk 0:01:30.5]} 57... Rxe4 {[%clk 0:01:17.8]} 58.
Qd2 {[%clk 0:01:31.3]} 58... Qf3+ {[%clk 0:01:15.9]} 0-1

[Event "*** Titled Tuesday Blitz"]
[Site "Chess.com"]
[Date "2018.01.02"]
[Round "1"]
[White "Kawhi_Leonard2"]
[Black "1stSecond"]
[Result "0-1"]
[WhiteElo "2159"]
[BlackElo "2474"]
[TimeControl "180+2"]
[EndTime "13:08:05 PST"]
[Termination "1stSecond won by resignation"]

1. e4 {[%clk 0:03:01.9]} 1... c5 {[%clk 0:02:56.5]} 2. Nf3 {[%clk 0:03:02.7]}
2... e6 {[%clk 0:02:57.5]} 3. d4 {[%clk 0:03:03.7]} 3... cxd4 {[%clk 0:02:57.6]}
4. Nxd4 {[%clk 0:03:05.6]} 4... Nc6 {[%clk 0:02:58.3]} 5. Nc3 {[%clk 0:03:05.4]}
5... Qc7 {[%clk 0:02:58.1]} 6. Nxc6 {[%clk 0:03:06.5]} 6... bxc6 {[%clk
0:02:53.7]} 7. Bd3 {[%clk 0:03:08.1]} 7... Nf6 {[%clk 0:02:53.7]} 8. Qe2 {[%clk
0:03:03.1]} 8... d5 {[%clk 0:02:51.8]} 9. O-O {[%clk 0:03:02.7]} 9... Be7 {[%clk
0:02:43.7]} 10. f4 {[%clk 0:02:58.6]} 10... h5 {[%clk 0:02:37]} 11. Kh1 {[%clk
0:02:58.2]} 11... h4 {[%clk 0:02:36.9]} 12. b3 {[%clk 0:02:50.5]} 12... Nh5
{[%clk 0:02:26.4]} 13. f5 {[%clk 0:02:18.8]} 13... Qe5 {[%clk 0:02:15.9]} 14.
Bd2 {[%clk 0:02:15.8]} 14... Bd6 {[%clk 0:02:15]} 15. g4 {[%clk 0:01:57.4]}
15... hxg3 {[%clk 0:01:57.2]} 16. Kg2 {[%clk 0:01:58.5]} 16... gxh2 {[%clk
0:01:55.2]} 17. Qf3 {[%clk 0:01:54.4]} 17... Qg3+ {[%clk 0:01:45.2]} 18. Qxg3
{[%clk 0:01:52.2]} 18... Nxg3 {[%clk 0:01:47.1]} 19. Rfe1 {[%clk 0:01:23.8]}
19... h1=Q+ {[%clk 0:01:35.1]} 20. Rxh1 {[%clk 0:01:24.1]} 20... Nxh1 {[%clk
0:01:36.5]} 21. Rxh1 {[%clk 0:01:25.1]} 21... Rxh1 {[%clk 0:01:38.4]} 22. Kxh1
{[%clk 0:01:26.4]} 22... d4 {[%clk 0:01:38.4]} 23. Ne2 {[%clk 0:01:26.5]} 23...
exf5 {[%clk 0:01:37.8]} 24. exf5 {[%clk 0:01:27.1]} 24... c5 {[%clk 0:01:39.3]}
25. c3 {[%clk 0:01:21.3]} 25... Bb7+ {[%clk 0:01:39.8]} 26. Kg1 {[%clk
0:01:22.6]} 26... O-O-O {[%clk 0:01:38]} 27. cxd4 {[%clk 0:01:20.2]} 27... cxd4
{[%clk 0:01:39.4]} 28. Bf4 {[%clk 0:01:10.5]} 28... Bxf4 {[%clk 0:01:37.2]} 29.
Nxf4 {[%clk 0:01:11.6]} 29... Kd7 {[%clk 0:01:34.7]} 30. Kf2 {[%clk 0:01:11.6]}
30... Ke7 {[%clk 0:01:34.7]} 31. Nh5 {[%clk 0:01:03.8]} 31... Rh8 {[%clk
0:01:34.2]} 32. Nf4 {[%clk 0:01:01.7]} 32... Kf6 {[%clk 0:01:34.2]} 33. Kg3
{[%clk 0:00:58.7]} 33... Rh1 {[%clk 0:01:22]} 34. Ne2 {[%clk 0:00:49.3]} 34...
Ke5 {[%clk 0:01:20.3]} 35. Kf2 {[%clk 0:00:47.5]} 35... Ra1 {[%clk 0:01:15.7]}
36. a4 {[%clk 0:00:47.9]} 36... Be4 {[%clk 0:01:16.8]} 37. Bc4 {[%clk
0:00:45.1]} 37... Bxf5 {[%clk 0:01:11.9]} 38. Bxf7 {[%clk 0:00:45.6]} 38... d3
{[%clk 0:01:12.5]} 39. Ng1 {[%clk 0:00:36.9]} 39... Bg4 {[%clk 0:00:54.2]} 40.
Nf3+ {[%clk 0:00:33]} 40... Bxf3 {[%clk 0:00:38.7]} 41. Kxf3 {[%clk 0:00:34.1]}
41... d2 {[%clk 0:00:40.1]} 0-1

[Event "*** Titled Tuesday Blitz"]
[Site "Chess.com"]
[Date "2018.01.02"]
[Round "1"]
[White "Incognito_Knight"]
[Black "rasool78"]
[Result "1-0"]
[WhiteElo "2522"]
[BlackElo "2227"]
[TimeControl "180+2"]
[EndTime "13:08:08 PST"]
[Termination "Incognito_Knight won on time"]

1. e4 {[%clk 0:03:00.4]} 1... g6 {[%clk 0:01:59]} 2. d4 {[%clk 0:02:58.2]} 2...
Bg7 {[%clk 0:01:59.2]} 3. Nc3 {[%clk 0:02:59.2]} 3... c5 {[%clk 0:01:59.6]} 4.
dxc5 {[%clk 0:02:59]} 4... Bxc3+ {[%clk 0:01:59.5]} 5. bxc3 {[%clk 0:03:00.4]}
5... Qa5 {[%clk 0:02:01]} 6. Qd4 {[%clk 0:03:01.4]} 6... Nf6 {[%clk 0:01:58.5]}
7. f3 {[%clk 0:02:42]} 7... Nc6 {[%clk 0:01:57.6]} 8. Qe3 {[%clk 0:02:43.4]}
8... b6 {[%clk 0:01:53.3]} 9. cxb6 {[%clk 0:02:44.4]} 9... axb6 {[%clk
0:01:53.7]} 10. Bd2 {[%clk 0:02:42.9]} 10... d6 {[%clk 0:01:39.9]} 11. c4 {[%clk
0:02:43.8]} 11... Qc5 {[%clk 0:01:23]} 12. Qxc5 {[%clk 0:02:42.7]} 12... bxc5
{[%clk 0:01:22.6]} 13. Bc3 {[%clk 0:02:39]} 13... Be6 {[%clk 0:01:16.7]} 14. a4
{[%clk 0:02:35.8]} 14... Na5 {[%clk 0:01:09.1]} 15. Bxa5 {[%clk 0:02:17.7]}
15... Rxa5 {[%clk 0:01:09]} 16. Kd2 {[%clk 0:02:17.7]} 16... O-O {[%clk
0:01:03.8]} 17. Ne2 {[%clk 0:02:19]} 17... Bxc4 {[%clk 0:01:01.1]} 18. Nc3
{[%clk 0:02:20.5]} 18... Bxf1 {[%clk 0:00:58.4]} 19. Rhxf1 {[%clk 0:02:22.4]}
19... Rfa8 {[%clk 0:00:59.1]} 20. Rfb1 {[%clk 0:02:19.7]} 20... R8a7 {[%clk
0:00:53.2]} 21. f4 {[%clk 0:02:13.1]} 21... Kg7 {[%clk 0:00:37.6]} 22. Ra2
{[%clk 0:02:06]} 22... Ne8 {[%clk 0:00:37]} 23. Rab2 {[%clk 0:02:03.7]} 23...
Nc7 {[%clk 0:00:33.1]} 24. Rb7 {[%clk 0:02:04.3]} 24... Ne6 {[%clk 0:00:32.7]}
25. Rxa7 {[%clk 0:01:57.9]} 25... Rxa7 {[%clk 0:00:33.4]} 26. g3 {[%clk
0:01:57]} 26... Nd4 {[%clk 0:00:33.8]} 27. Kd3 {[%clk 0:01:57.6]} 27... Nc6
{[%clk 0:00:30]} 28. Kc4 {[%clk 0:01:49.4]} 28... Nb4 {[%clk 0:00:30.2]} 29. Rb2
{[%clk 0:01:44.5]} 29... e6 {[%clk 0:00:28.3]} 30. Kb3 {[%clk 0:01:40.3]} 30...
Kf6 {[%clk 0:00:20.8]} 31. Nb5 {[%clk 0:01:41.1]} 31... Ra6 {[%clk 0:00:22]} 32.
c3 {[%clk 0:01:40.4]} 32... Nd3 {[%clk 0:00:21.1]} 33. Rd2 {[%clk 0:01:40.5]}
33... d5 {[%clk 0:00:15.7]} 34. exd5 {[%clk 0:01:29.6]} 34... exd5 {[%clk
0:00:16.4]} 35. c4 {[%clk 0:01:25.9]} 35... dxc4+ {[%clk 0:00:14.9]} 36. Kxc4
{[%clk 0:01:27]} 36... Ne1 {[%clk 0:00:15.9]} 37. Rd6+ {[%clk 0:01:25.4]} 37...
Rxd6 {[%clk 0:00:14.8]} 38. Nxd6 {[%clk 0:01:26.6]} 38... Ke6 {[%clk 0:00:15.4]}
39. Ne4 {[%clk 0:01:26.4]} 39... Nf3 {[%clk 0:00:13.9]} 40. Ng5+ {[%clk
0:01:24.8]} 40... Kd6 {[%clk 0:00:15.8]} 41. Nxf3 {[%clk 0:01:25.7]} 1-0

[Event "*** Titled Tuesday Blitz"]
[Site "Chess.com"]
[Date "2018.01.02"]
[Round "1"]
[White "saraswathii"]
[Black "Keaton87"]
[Result "0-1"]
[WhiteElo "2268"]
[BlackElo "2549"]
[TimeControl "180+2"]
[EndTime "13:08:11 PST"]
[Termination "Keaton87 won by resignation"]

1. d4 {[%clk 0:03:00.6]} 1... Nf6 {[%clk 0:03:00.3]} 2. Bf4 {[%clk 0:02:55.3]}
2... d5 {[%clk 0:02:57.3]} 3. e3 {[%clk 0:02:56.2]} 3... c5 {[%clk 0:02:57.4]}
4. c3 {[%clk 0:02:49.5]} 4... Nc6 {[%clk 0:02:50.5]} 5. Nf3 {[%clk 0:02:50.3]}
5... Qb6 {[%clk 0:02:48.4]} 6. Qb3 {[%clk 0:02:48]} 6... c4 {[%clk 0:02:48.5]}
7. Qc2 {[%clk 0:02:48.2]} 7... Bf5 {[%clk 0:02:49.3]} 8. Qc1 {[%clk 0:02:48.8]}
8... Qd8 {[%clk 0:02:47.7]} 9. Nbd2 {[%clk 0:02:48.2]} 9... h6 {[%clk
0:02:44.2]} 10. h3 {[%clk 0:02:47.8]} 10... e6 {[%clk 0:02:44.1]} 11. Be2 {[%clk
0:02:47]} 11... Bd6 {[%clk 0:02:43.5]} 12. Bxd6 {[%clk 0:02:47.1]} 12... Qxd6
{[%clk 0:02:45.3]} 13. O-O {[%clk 0:02:48.2]} 13... O-O {[%clk 0:02:46.4]} 14.
Re1 {[%clk 0:02:48.6]} 14... b5 {[%clk 0:02:44.1]} 15. a3 {[%clk 0:02:48.1]}
15... a5 {[%clk 0:02:44.6]} 16. Nh2 {[%clk 0:02:47.6]} 16... b4 {[%clk
0:02:41.4]} 17. Bf3 {[%clk 0:02:48.5]} 17... bxc3 {[%clk 0:02:32.8]} 18. bxc3
{[%clk 0:02:46.6]} 18... Bd3 {[%clk 0:02:23.6]} 19. e4 {[%clk 0:02:46.8]} 19...
dxe4 {[%clk 0:02:15.8]} 20. Nxe4 {[%clk 0:02:46.9]} 20... Bxe4 {[%clk
0:01:57.5]} 21. Bxe4 {[%clk 0:02:48.8]} 21... Nxe4 {[%clk 0:01:58.8]} 22. Rxe4
{[%clk 0:02:49.3]} 22... Rab8 {[%clk 0:01:59.4]} 23. Nf3 {[%clk 0:02:44.1]}
23... Ne7 {[%clk 0:01:52.8]} 24. Ne5 {[%clk 0:02:42.3]} 24... Qd5 {[%clk
0:01:46.2]} 25. Rg4 {[%clk 0:02:40.2]} 25... Kh8 {[%clk 0:01:43.1]} 26. Rb1
{[%clk 0:02:35.4]} 26... Rb3 {[%clk 0:01:38.2]} 27. Rxb3 {[%clk 0:02:14.9]}
27... cxb3 {[%clk 0:01:38.7]} 28. c4 {[%clk 0:02:16.2]} 28... Qb7 {[%clk
0:01:30.6]} 29. Qb2 {[%clk 0:02:10.1]} 29... a4 {[%clk 0:01:29]} 30. d5 {[%clk
0:02:00.8]} 30... f6 {[%clk 0:01:12]} 31. d6 {[%clk 0:01:24.9]} 31... fxe5
{[%clk 0:00:58.7]} 32. dxe7 {[%clk 0:01:25.1]} 32... Qxe7 {[%clk 0:01:00.3]} 33.
Qxe5 {[%clk 0:01:24.4]} 33... Qf6 {[%clk 0:00:51.2]} 34. Qb5 {[%clk 0:01:17.9]}
34... Qxf2+ {[%clk 0:00:50.2]} 35. Kh2 {[%clk 0:01:17.9]} 35... Qa7 {[%clk
0:00:40.5]} 36. c5 {[%clk 0:01:15.6]} 36... Qb8+ {[%clk 0:00:23.4]} 37. Qxb8
{[%clk 0:01:14.8]} 37... Rxb8 {[%clk 0:00:25.3]} 38. c6 {[%clk 0:01:11.1]} 38...
b2 {[%clk 0:00:21.4]} 39. c7 {[%clk 0:01:11.8]} 39... b1=Q {[%clk 0:00:22.6]}
40. cxb8=Q+ {[%clk 0:01:12.3]} 40... Qxb8+ {[%clk 0:00:23.3]} 41. Kg1 {[%clk
0:01:12.9]} 41... Qb3 {[%clk 0:00:20.6]} 42. Re4 {[%clk 0:01:09.2]} 42... Qxa3
{[%clk 0:00:20.9]} 43. Rxe6 {[%clk 0:01:09.8]} 43... Qc1+ {[%clk 0:00:20.8]} 44.
Kh2 {[%clk 0:01:10.8]} 44... a3 {[%clk 0:00:22.1]} 0-1

[Event "*** Titled Tuesday Blitz"]
[Site "Chess.com"]
[Date "2018.01.02"]
[Round "1"]
[White "littleozy"]
[Black "Indianlad"]
[Result "1-0"]
[WhiteElo "2389"]
[BlackElo "2652"]
[TimeControl "180+2"]
[EndTime "13:08:12 PST"]
[Termination "littleozy won by resignation"]

1. d4 {[%clk 0:03:01.9]} 1... Nf6 {[%clk 0:03:00.3]} 2. c4 {[%clk 0:03:03]} 2...
e6 {[%clk 0:03:01.2]} 3. Nf3 {[%clk 0:03:03.4]} 3... d5 {[%clk 0:03:02.6]} 4.
Nc3 {[%clk 0:03:03.1]} 4... c6 {[%clk 0:03:02.8]} 5. cxd5 {[%clk 0:03:02.6]}
5... exd5 {[%clk 0:03:03.4]} 6. Bf4 {[%clk 0:03:04.1]} 6... Bd6 {[%clk
0:03:01.6]} 7. Bg3 {[%clk 0:03:03]} 7... O-O {[%clk 0:03:00.5]} 8. e3 {[%clk
0:03:04]} 8... Bg4 {[%clk 0:03:01.7]} 9. Bd3 {[%clk 0:03:03.8]} 9... Re8 {[%clk
0:03:02.7]} 10. O-O {[%clk 0:03:04.5]} 10... Bxf3 {[%clk 0:03:02.4]} 11. gxf3
{[%clk 0:03:01.3]} 11... Na6 {[%clk 0:02:58.7]} 12. Rc1 {[%clk 0:02:59.3]} 12...
Nc7 {[%clk 0:02:59.1]} 13. Kh1 {[%clk 0:02:58.2]} 13... Bxg3 {[%clk 0:02:58]}
14. hxg3 {[%clk 0:02:57.5]} 14... Ne6 {[%clk 0:02:58.4]} 15. Kg2 {[%clk
0:02:55.6]} 15... c5 {[%clk 0:02:58.9]} 16. dxc5 {[%clk 0:02:47.8]} 16... Nxc5
{[%clk 0:02:58.7]} 17. Bb1 {[%clk 0:02:48.7]} 17... Rc8 {[%clk 0:02:46.2]} 18.
Rh1 {[%clk 0:02:48.1]} 18... h6 {[%clk 0:02:45.2]} 19. Ne2 {[%clk 0:02:41.4]}
19... Ne6 {[%clk 0:02:43.7]} 20. Qd3 {[%clk 0:02:19.7]} 20... Qb6 {[%clk
0:02:38.9]} 21. b3 {[%clk 0:02:18]} 21... a6 {[%clk 0:02:30.3]} 22. g4 {[%clk
0:02:14.3]} 22... Rcd8 {[%clk 0:02:17.5]} 23. Nf4 {[%clk 0:01:11.6]} 23... d4
{[%clk 0:02:05.8]} 24. Nxe6 {[%clk 0:01:05.8]} 24... Qxe6 {[%clk 0:02:05.5]} 25.
e4 {[%clk 0:01:03.5]} 25... Qe5 {[%clk 0:01:36.4]} 26. Rc4 {[%clk 0:00:52]}
26... Rd7 {[%clk 0:01:32.1]} 27. Rhc1 {[%clk 0:00:50.8]} 27... Red8 {[%clk
0:01:32.4]} 28. Rc5 {[%clk 0:00:51.4]} 28... Qf4 {[%clk 0:01:25.6]} 29. e5
{[%clk 0:00:36.6]} 29... Nd5 {[%clk 0:01:25.7]} 30. Qh7+ {[%clk 0:00:38]} 30...
Kf8 {[%clk 0:01:26.5]} 31. Qh8+ {[%clk 0:00:39.2]} 31... Ke7 {[%clk 0:01:27.7]}
32. Qxg7 {[%clk 0:00:38.2]} 32... Qg5 {[%clk 0:01:29]} 33. Qxg5+ {[%clk
0:00:32.2]} 33... hxg5 {[%clk 0:01:30.9]} 34. Bf5 {[%clk 0:00:22.6]} 34... Nf4+
{[%clk 0:01:32.3]} 35. Kf1 {[%clk 0:00:21.3]} 35... Rd5 {[%clk 0:01:26.1]} 36.
Rc7+ {[%clk 0:00:21.3]} 36... Kf8 {[%clk 0:01:27]} 37. Rxb7 {[%clk 0:00:21.2]}
37... Rb5 {[%clk 0:00:54.6]} 38. Rxb5 {[%clk 0:00:13.8]} 38... axb5 {[%clk
0:00:56.5]} 39. Rd1 {[%clk 0:00:14.7]} 39... d3 {[%clk 0:00:56.9]} 40. Ke1
{[%clk 0:00:15.6]} 40... Rd6 {[%clk 0:00:57.1]} 41. exd6 {[%clk 0:00:15]} 1-0